[Event "Titled Tuesday Blitz May 11 2021"]
[White "Nygren, Kim"]
[Black "Banawa, Joel"]
[WhiteFideId "1706136"]
[BlackFideId "2024055"]
[WhiteElo "2257"]
[BlackElo "2711"]
[Result "1-0"]
[Round "02"]
[TimeControl "180+1"]
[Date "2021.05.11"]
[WhiteClock "0:00:07"]
[BlackClock "0:00:06"]

1. e4 {[%clk 0:03:00]}  e5 {[%clk 0:02:59]} 2. Nf3 {[%clk 0:02:57]}  Nc6 {[%clk 0:03:00]} 3. Bb5 {[%clk 0:02:56]}  a6 {[%clk 0:03:00]} 4. Ba4 {[%clk 0:02:57]}  Nf6 {[%clk 0:02:58]} 5. O-O {[%clk 0:02:56]}  b5 {[%clk 0:02:59]} 6. Bb3 {[%clk 0:02:56]}  Bb7 {[%clk 0:02:59]} 7. d3 {[%clk 0:02:55]}  Bc5 {[%clk 0:03:00]} 8. Be3 {[%clk 0:02:54]}  d6 {[%clk 0:02:58]} 9. a4 {[%clk 0:02:48]}  O-O {[%clk 0:02:57]} 10. Nc3 {[%clk 0:02:47]}  b4 {[%clk 0:02:33]} 11. Nd5 {[%clk 0:02:46]}  Na5 {[%clk 0:02:33]} 12. Bg5 {[%clk 0:02:39]}  Bxd5 {[%clk 0:02:32]} 13. Bxd5 {[%clk 0:02:37]}  c6 {[%clk 0:02:31]} 14. Ba2 {[%clk 0:02:36]}  h6 {[%clk 0:02:31]} 15. Bh4 {[%clk 0:02:35]}  Re8 {[%clk 0:02:29]} 16. Kh1 {[%clk 0:02:31]}  d5 {[%clk 0:02:27]} 17. exd5 {[%clk 0:02:26]}  cxd5 {[%clk 0:02:28]} 18. d4 {[%clk 0:02:26]}  exd4 {[%clk 0:02:24]} 19. Nxd4 {[%clk 0:02:26]}  Bxd4 {[%clk 0:01:38]} 20. Qxd4 {[%clk 0:02:25]}  Re4 {[%clk 0:01:39]} 21. Bxf6 {[%clk 0:02:12]}  Rxd4 {[%clk 0:01:39]} 22. Bxd8 {[%clk 0:02:12]}  Rxd8 {[%clk 0:01:40]} 23. Rad1 {[%clk 0:02:10]}  Rxd1 {[%clk 0:01:36]} 24. Rxd1 {[%clk 0:02:11]}  d4 {[%clk 0:01:36]} 25. Kg1 {[%clk 0:02:01]}  Nb7 {[%clk 0:01:33]} 26. Bc4 {[%clk 0:01:52]}  Nc5 {[%clk 0:01:26]} 27. b3 {[%clk 0:01:49]}  a5 {[%clk 0:01:27]} 28. f3 {[%clk 0:01:48]}  Rd6 {[%clk 0:01:19]} 29. Kf2 {[%clk 0:01:47]}  Nd7 {[%clk 0:01:19]} 30. Bb5 {[%clk 0:01:39]}  Ne5 {[%clk 0:01:19]} 31. Re1 {[%clk 0:01:38]}  f6 {[%clk 0:01:19]} 32. Rd1 {[%clk 0:01:34]}  Kf7 {[%clk 0:01:10]} 33. h3 {[%clk 0:01:33]}  g5 {[%clk 0:01:11]} 34. g3 {[%clk 0:01:31]}  f5 {[%clk 0:01:08]} 35. f4 {[%clk 0:01:29]}  gxf4 {[%clk 0:01:09]} 36. gxf4 {[%clk 0:01:30]}  Ng6 {[%clk 0:01:09]} 37. Kf3 {[%clk 0:01:27]}  Kf6 {[%clk 0:01:07]} 38. Be8 {[%clk 0:01:18]}  Nf8 {[%clk 0:00:54]} 39. Bb5 {[%clk 0:01:14]}  Ne6 {[%clk 0:00:51]} 40. Rg1 {[%clk 0:01:13]}  Ng7 {[%clk 0:00:31]} 41. Bc4 {[%clk 0:01:08]}  Rd7 {[%clk 0:00:31]} 42. Re1 {[%clk 0:01:04]}  Rd6 {[%clk 0:00:24]} 43. Re5 {[%clk 0:01:02]}  Rc6 {[%clk 0:00:11]} 44. Rxa5 {[%clk 0:00:56]}  Ne8 {[%clk 0:00:11]} 45. Bd3 {[%clk 0:00:50]}  Nd6 {[%clk 0:00:11]} 46. Rd5 {[%clk 0:00:48]}  Ke6 {[%clk 0:00:10]} 47. Re5+ {[%clk 0:00:46]}  Kf6 {[%clk 0:00:10]} 48. Rd5 {[%clk 0:00:46]}  Ke6 {[%clk 0:00:11]} 49. Rxd4 {[%clk 0:00:46]}  Rb6 {[%clk 0:00:11]} 50. a5 {[%clk 0:00:45]}  Rb8 {[%clk 0:00:11]} 51. a6 {[%clk 0:00:44]}  Ke7 {[%clk 0:00:07]} 52. Rxb4 {[%clk 0:00:25]}  Ra8 {[%clk 0:00:03]} 53. Ra4 {[%clk 0:00:21]}  Kd7 {[%clk 0:00:03]} 54. b4 {[%clk 0:00:21]}  Kc7 {[%clk 0:00:03]} 55. c4 {[%clk 0:00:20]}  Nc8 {[%clk 0:00:03]} 56. c5 {[%clk 0:00:20]}  Kc6 {[%clk 0:00:03]} 57. Ra5 {[%clk 0:00:18]}  Na7 {[%clk 0:00:03]} 58. Bxf5 {[%clk 0:00:17]}  Rb8 {[%clk 0:00:04]} 59. Be4+ {[%clk 0:00:16]}  Kc7 {[%clk 0:00:04]} 60. Bb7 {[%clk 0:00:15]}  Rd8 {[%clk 0:00:05]} 61. f5 {[%clk 0:00:15]}  Rd3+ {[%clk 0:00:05]} 62. Kf4 {[%clk 0:00:15]}  Rb3 {[%clk 0:00:05]} 63. f6 {[%clk 0:00:14]}  Rxb4+ {[%clk 0:00:05]} 64. Kf5 {[%clk 0:00:14]}  Rb1 {[%clk 0:00:06]} 65. Kg6 {[%clk 0:00:14]}  Rf1 {[%clk 0:00:06]} 66. f7 {[%clk 0:00:14]}  h5 {[%clk 0:00:06]} 67. Kg7 {[%clk 0:00:14]}  Rg1+ {[%clk 0:00:07]} 68. Kh8 {[%clk 0:00:13]}  Rf1 {[%clk 0:00:08]} 69. Kg8 {[%clk 0:00:14]}  Rg1+ {[%clk 0:00:08]} 70. Kf8 {[%clk 0:00:14]}  Rf1 {[%clk 0:00:09]} 71. Ra3 {[%clk 0:00:13]}  Nb5 {[%clk 0:00:07]} 72. Re3 {[%clk 0:00:12]}  Nd4 {[%clk 0:00:07]} 73. Ke7 {[%clk 0:00:12]}  Nf5+ {[%clk 0:00:07]} 74. Ke8 {[%clk 0:00:11]}  Ng7+ {[%clk 0:00:06]} 75. Kf8 {[%clk 0:00:10]}  Nf5 {[%clk 0:00:06]} 76. Ra3 {[%clk 0:00:09]}  Nd4 {[%clk 0:00:06]} 77. a7 {[%clk 0:00:08]}  Ne6+ {[%clk 0:00:06]} 78. Ke7 {[%clk 0:00:08]}  Ng5 {[%clk 0:00:06]} 79. f8=Q {[%clk 0:00:07]}  Re1+ {[%clk 0:00:06]} 80. Kf6 {[%clk 0:00:06]}  Nh7+ {[%clk 0:00:06]} 81. Kg7 {[%clk 0:00:07]}  Nxf8 {[%clk 0:00:07]} 82. a8=Q {[%clk 0:00:07]}  Ne6+ {[%clk 0:00:07]} 83. Kf6 {[%clk 0:00:07]}  Nxc5 {[%clk 0:00:05]} 84. Qc8+ {[%clk 0:00:07]}  Kb6 {[%clk 0:00:06]} 85. Qc6# {[%clk 0:00:07]} 1-0


[Site "https://www.chess.com"]

[Event "Titled Tuesday Blitz May 11 2021"]
[White "Paichadze, Luka"]
[Black "Janaszak, Dawid"]
[WhiteFideId "13602934"]
[BlackFideId "1119206"]
[WhiteElo "2537"]
[BlackElo "2332"]
[Result "0-1"]
[Round "02"]
[TimeControl "180+1"]
[Date "2021.05.11"]
[WhiteClock "0:00:26"]
[BlackClock "0:00:14"]

1. e4 {[%clk 0:02:56]}  c6 {[%clk 0:02:59]} 2. d4 {[%clk 0:02:54]}  d5 {[%clk 0:03:00]} 3. f3 {[%clk 0:02:54]}  Qb6 {[%clk 0:02:55]} 4. Nc3 {[%clk 0:02:54]}  e5 {[%clk 0:02:50]} 5. dxe5 {[%clk 0:02:53]}  d4 {[%clk 0:02:49]} 6. Nce2 {[%clk 0:02:37]}  c5 {[%clk 0:02:48]} 7. g3 {[%clk 0:02:30]}  Nc6 {[%clk 0:02:48]} 8. f4 {[%clk 0:02:28]}  c4 {[%clk 0:02:32]} 9. Bg2 {[%clk 0:02:22]}  Bc5 {[%clk 0:02:31]} 10. Nf3 {[%clk 0:02:20]}  Nge7 {[%clk 0:02:25]} 11. f5 {[%clk 0:02:15]}  Bd7 {[%clk 0:02:06]} 12. Bg5 {[%clk 0:02:05]}  O-O-O {[%clk 0:01:56]} 13. b3 {[%clk 0:01:37]}  d3 {[%clk 0:01:51]} 14. cxd3 {[%clk 0:01:36]}  cxd3 {[%clk 0:01:49]} 15. Nf4 {[%clk 0:01:31]}  Nb4 {[%clk 0:01:32]} 16. Rc1 {[%clk 0:01:21]}  Nc2+ {[%clk 0:01:16]} 17. Rxc2 {[%clk 0:01:19]}  dxc2 {[%clk 0:01:17]} 18. Qxc2 {[%clk 0:01:18]}  Kb8 {[%clk 0:01:09]} 19. Bxe7 {[%clk 0:01:10]}  Bxe7 {[%clk 0:00:59]} 20. Nd5 {[%clk 0:01:10]}  Bb4+ {[%clk 0:00:51]} 21. Nxb4 {[%clk 0:00:58]}  Qxb4+ {[%clk 0:00:52]} 22. Kf2 {[%clk 0:00:55]}  Bc6 {[%clk 0:00:49]} 23. Re1 {[%clk 0:00:52]}  Rd7 {[%clk 0:00:42]} 24. e6 {[%clk 0:00:47]}  fxe6 {[%clk 0:00:41]} 25. fxe6 {[%clk 0:00:48]}  Rc7 {[%clk 0:00:36]} 26. Qd2 {[%clk 0:00:44]}  Qe7 {[%clk 0:00:32]} 27. Bh3 {[%clk 0:00:42]}  Rd8 {[%clk 0:00:30]} 28. Qf4 {[%clk 0:00:40]}  Ka8 {[%clk 0:00:29]} 29. Qe5 {[%clk 0:00:35]}  Be8 {[%clk 0:00:22]} 30. Re2 {[%clk 0:00:30]}  Rc1 {[%clk 0:00:20]} 31. Nd4 {[%clk 0:00:28]}  Qf8+ {[%clk 0:00:15]} 32. Kg2 {[%clk 0:00:26]}  Qf1# {[%clk 0:00:14]} 0-1


[Site "https://www.chess.com"]

[Event "Titled Tuesday Blitz May 11 2021"]
[White "Pajeken, Jakob Leon"]
[Black "Alavi, Sayed Javad"]
[WhiteFideId "12942839"]
[BlackFideId "12500607"]
[WhiteElo "2024"]
[BlackElo "2495"]
[Result "0-1"]
[Round "02"]
[TimeControl "180+1"]
[Date "2021.05.11"]
[WhiteClock "0:00:13"]
[BlackClock "0:00:08"]

1. d4 {[%clk 0:02:56]}  Nf6 {[%clk 0:02:59]} 2. Nf3 {[%clk 0:02:56]}  e6 {[%clk 0:02:59]} 3. Bf4 {[%clk 0:02:55]}  c5 {[%clk 0:02:58]} 4. e3 {[%clk 0:02:56]}  b6 {[%clk 0:02:57]} 5. Nc3 {[%clk 0:02:54]}  cxd4 {[%clk 0:02:39]} 6. Nxd4 {[%clk 0:02:43]}  a6 {[%clk 0:02:23]} 7. Qf3 {[%clk 0:02:23]}  d5 {[%clk 0:02:23]} 8. O-O-O {[%clk 0:02:21]}  Bb7 {[%clk 0:02:17]} 9. g4 {[%clk 0:02:20]}  Be7 {[%clk 0:01:57]} 10. g5 {[%clk 0:02:14]}  Nfd7 {[%clk 0:01:57]} 11. Bh3 {[%clk 0:02:10]}  O-O {[%clk 0:01:26]} 12. Bxe6 {[%clk 0:02:03]}  fxe6 {[%clk 0:01:12]} 13. Nxe6 {[%clk 0:02:02]}  Qe8 {[%clk 0:01:06]} 14. Nxd5 {[%clk 0:01:49]}  Nc5 {[%clk 0:00:52]} 15. Nxf8 {[%clk 0:01:44]}  Bxf8 {[%clk 0:00:49]} 16. Rhg1 {[%clk 0:01:29]}  Qf7 {[%clk 0:00:43]} 17. e4 {[%clk 0:00:57]}  Nc6 {[%clk 0:00:36]} 18. Kb1 {[%clk 0:00:40]}  Re8 {[%clk 0:00:34]} 19. Rge1 {[%clk 0:00:35]}  Ne6 {[%clk 0:00:28]} 20. Qg3 {[%clk 0:00:32]}  Nxf4 {[%clk 0:00:24]} 21. Nxf4 {[%clk 0:00:33]}  Bc5 {[%clk 0:00:20]} 22. Nd3 {[%clk 0:00:31]}  Bd4 {[%clk 0:00:18]} 23. c3 {[%clk 0:00:31]}  Be5 {[%clk 0:00:17]} 24. f4 {[%clk 0:00:31]}  Bc7 {[%clk 0:00:16]} 25. e5 {[%clk 0:00:32]}  Ne7 {[%clk 0:00:15]} 26. Nb4 {[%clk 0:00:25]}  a5 {[%clk 0:00:13]} 27. Nc2 {[%clk 0:00:25]}  Nf5 {[%clk 0:00:13]} 28. Qf2 {[%clk 0:00:25]}  Bd5 {[%clk 0:00:10]} 29. a3 {[%clk 0:00:19]}  Bb3 {[%clk 0:00:09]} 30. Rd2 {[%clk 0:00:18]}  Rc8 {[%clk 0:00:07]} 31. Nd4 {[%clk 0:00:18]}  Nxd4 {[%clk 0:00:07]} 32. Qxd4 {[%clk 0:00:19]}  Qf5+ {[%clk 0:00:06]} 33. Ka1 {[%clk 0:00:18]}  Be6 {[%clk 0:00:06]} 34. Qe4 {[%clk 0:00:17]}  Qf7 {[%clk 0:00:05]} 35. Rf1 {[%clk 0:00:17]}  Rf8 {[%clk 0:00:05]} 36. h4 {[%clk 0:00:16]}  g6 {[%clk 0:00:05]} 37. Qc6 {[%clk 0:00:16]}  Bxe5 {[%clk 0:00:03]} 38. Re2 {[%clk 0:00:16]}  Bc4 {[%clk 0:00:03]} 39. Rxe5 {[%clk 0:00:10]}  Bxf1 {[%clk 0:00:04]} 40. Qxb6 {[%clk 0:00:10]}  Qxf4 {[%clk 0:00:04]} 41. Re7 {[%clk 0:00:10]}  Bc4 {[%clk 0:00:02]} 42. Re1 {[%clk 0:00:08]}  Qf1 {[%clk 0:00:02]} 43. Qe3 {[%clk 0:00:07]}  Qxe1+ {[%clk 0:00:02]} 44. Qxe1 {[%clk 0:00:06]}  Rf1 {[%clk 0:00:03]} 45. Qxf1 {[%clk 0:00:07]}  Bxf1 {[%clk 0:00:04]} 46. b4 {[%clk 0:00:07]}  axb4 {[%clk 0:00:04]} 47. cxb4 {[%clk 0:00:08]}  Kf7 {[%clk 0:00:03]} 48. Kb2 {[%clk 0:00:08]}  Ke6 {[%clk 0:00:03]} 49. a4 {[%clk 0:00:09]}  Kd5 {[%clk 0:00:04]} 50. Kc3 {[%clk 0:00:10]}  Be2 {[%clk 0:00:02]} 51. Kd2 {[%clk 0:00:09]}  Bc4 {[%clk 0:00:02]} 52. Kc3 {[%clk 0:00:09]}  Bf1 {[%clk 0:00:03]} 53. b5 {[%clk 0:00:09]}  Kc5 {[%clk 0:00:03]} 54. Kb3 {[%clk 0:00:09]}  Bc4+ {[%clk 0:00:03]} 55. Kc3 {[%clk 0:00:09]}  Bd5 {[%clk 0:00:03]} 56. Kd3 {[%clk 0:00:08]}  Bb3 {[%clk 0:00:03]} 57. a5 {[%clk 0:00:07]}  Kxb5 {[%clk 0:00:04]} 58. Kd4 {[%clk 0:00:08]}  Kxa5 {[%clk 0:00:04]} 59. Ke5 {[%clk 0:00:09]}  Bd1 {[%clk 0:00:04]} 60. Kf6 {[%clk 0:00:10]}  Bh5 {[%clk 0:00:05]} 61. Kg7 {[%clk 0:00:10]}  Kb5 {[%clk 0:00:05]} 62. Kxh7 {[%clk 0:00:11]}  Kc4 {[%clk 0:00:06]} 63. Kg7 {[%clk 0:00:12]}  Kd4 {[%clk 0:00:07]} 64. Kf6 {[%clk 0:00:13]}  Ke4 {[%clk 0:00:08]} 0-1


[Site "https://www.chess.com"]

[Event "Titled Tuesday Blitz May 11 2021"]
[White "Pakleza, Zbigniew"]
[Black "Ozkan, Ervin"]
[WhiteFideId "1119290"]
[BlackFideId "6306004"]
[WhiteElo "2526"]
[BlackElo "2226"]
[Result "1-0"]
[Round "02"]
[TimeControl "180+1"]
[Date "2021.05.11"]
[WhiteClock "0:00:28"]
[BlackClock "0:00:34"]

1. d4 {[%clk 0:03:00]}  d5 {[%clk 0:02:59]} 2. Bf4 {[%clk 0:03:00]}  Nf6 {[%clk 0:02:59]} 3. e3 {[%clk 0:03:00]}  e6 {[%clk 0:03:00]} 4. Nd2 {[%clk 0:02:59]}  Bd6 {[%clk 0:03:00]} 5. Bg3 {[%clk 0:02:59]}  O-O {[%clk 0:03:01]} 6. Ngf3 {[%clk 0:02:59]}  b6 {[%clk 0:03:00]} 7. Ne5 {[%clk 0:02:58]}  c5 {[%clk 0:03:00]} 8. c3 {[%clk 0:02:58]}  Bb7 {[%clk 0:03:00]} 9. f4 {[%clk 0:02:52]}  Nc6 {[%clk 0:02:59]} 10. Bd3 {[%clk 0:02:52]}  Ne7 {[%clk 0:02:59]} 11. Qb1 {[%clk 0:02:52]}  g6 {[%clk 0:02:51]} 12. Bf2 {[%clk 0:02:50]}  Ne8 {[%clk 0:02:35]} 13. g4 {[%clk 0:02:38]}  f6 {[%clk 0:02:33]} 14. Nef3 {[%clk 0:02:37]}  Nc6 {[%clk 0:02:03]} 15. g5 {[%clk 0:02:02]}  e5 {[%clk 0:02:03]} 16. Bxg6 {[%clk 0:01:32]}  hxg6 {[%clk 0:02:00]} 17. Qxg6+ {[%clk 0:01:33]}  Ng7 {[%clk 0:02:01]} 18. gxf6 {[%clk 0:01:34]}  Rxf6 {[%clk 0:01:58]} 19. Qg2 {[%clk 0:01:24]}  exf4 {[%clk 0:01:49]} 20. O-O-O {[%clk 0:01:16]}  fxe3 {[%clk 0:01:45]} 21. Bxe3 {[%clk 0:01:12]}  Qd7 {[%clk 0:01:40]} 22. h4 {[%clk 0:01:07]}  Bf4 {[%clk 0:01:31]} 23. Bxf4 {[%clk 0:01:06]}  Rxf4 {[%clk 0:01:32]} 24. h5 {[%clk 0:01:07]}  Kh8 {[%clk 0:01:27]} 25. dxc5 {[%clk 0:01:00]}  Ne6 {[%clk 0:01:07]} 26. Nh4 {[%clk 0:00:54]}  Rf6 {[%clk 0:00:54]} 27. cxb6 {[%clk 0:00:36]}  axb6 {[%clk 0:00:52]} 28. Kb1 {[%clk 0:00:34]}  d4 {[%clk 0:00:50]} 29. Ne4 {[%clk 0:00:29]}  Rh6 {[%clk 0:00:34]} 30. Ng6+ {[%clk 0:00:28]}  Kh7 {[%clk 0:00:34]} 31. Nf6+ {[%clk 0:00:28]} 1-0


[Site "https://www.chess.com"]

[Event "Titled Tuesday Blitz May 11 2021"]
[White "Piesik, Piotr"]
[Black "Sevian, Samuel"]
[WhiteFideId "1136194"]
[BlackFideId "2040506"]
[WhiteElo "2369"]
[BlackElo "2980"]
[Result "0-1"]
[Round "02"]
[TimeControl "180+1"]
[Date "2021.05.11"]
[WhiteClock "0:01:10"]
[BlackClock "0:01:55"]

1. Nf3 {[%clk 0:03:00]}  Nf6 {[%clk 0:03:00]} 2. g3 {[%clk 0:03:01]}  d5 {[%clk 0:03:01]} 3. Bg2 {[%clk 0:03:02]}  Nbd7 {[%clk 0:03:00]} 4. O-O {[%clk 0:03:02]}  e5 {[%clk 0:03:00]} 5. d3 {[%clk 0:03:03]}  c6 {[%clk 0:03:01]} 6. Nbd2 {[%clk 0:03:04]}  Bd6 {[%clk 0:03:01]} 7. e4 {[%clk 0:03:04]}  O-O {[%clk 0:03:02]} 8. Qe2 {[%clk 0:03:03]}  Re8 {[%clk 0:03:02]} 9. a4 {[%clk 0:03:03]}  Nf8 {[%clk 0:03:02]} 10. b3 {[%clk 0:03:03]}  Ng6 {[%clk 0:03:02]} 11. Bb2 {[%clk 0:03:03]}  Bd7 {[%clk 0:03:00]} 12. Rfd1 {[%clk 0:02:57]}  a5 {[%clk 0:03:01]} 13. Nf1 {[%clk 0:02:56]}  Qc7 {[%clk 0:03:01]} 14. N3d2 {[%clk 0:02:53]}  d4 {[%clk 0:03:00]} 15. Nc4 {[%clk 0:02:52]}  Bb4 {[%clk 0:03:01]} 16. Bc1 {[%clk 0:02:49]}  b5 {[%clk 0:03:01]} 17. Nb2 {[%clk 0:02:47]}  Bc3 {[%clk 0:02:59]} 18. Ra2 {[%clk 0:02:47]}  Bg4 {[%clk 0:02:58]} 19. Bf3 {[%clk 0:02:46]}  Be6 {[%clk 0:02:58]} 20. Bd2 {[%clk 0:02:45]}  Nd7 {[%clk 0:02:53]} 21. Bg4 {[%clk 0:02:40]}  Bxg4 {[%clk 0:02:52]} 22. Qxg4 {[%clk 0:02:40]}  Nc5 {[%clk 0:02:53]} 23. Re1 {[%clk 0:02:32]}  Na6 {[%clk 0:02:53]} 24. Bxc3 {[%clk 0:02:26]}  dxc3 {[%clk 0:02:54]} 25. Nd1 {[%clk 0:02:26]}  Nb4 {[%clk 0:02:54]} 26. Nxc3 {[%clk 0:02:26]}  Nxa2 {[%clk 0:02:54]} 27. Nxa2 {[%clk 0:02:26]}  bxa4 {[%clk 0:02:54]} 28. bxa4 {[%clk 0:02:27]}  Rab8 {[%clk 0:02:54]} 29. Ne3 {[%clk 0:02:26]}  Qe7 {[%clk 0:02:52]} 30. Nc4 {[%clk 0:02:24]}  Nf8 {[%clk 0:02:49]} 31. Nxa5 {[%clk 0:02:18]}  Qa3 {[%clk 0:02:48]} 32. Nxc6 {[%clk 0:02:13]}  Qxa2 {[%clk 0:02:46]} 33. Nxb8 {[%clk 0:02:13]}  Rxb8 {[%clk 0:02:47]} 34. Qg5 {[%clk 0:02:10]}  Qxc2 {[%clk 0:02:42]} 35. Qxe5 {[%clk 0:02:10]}  Rd8 {[%clk 0:02:42]} 36. d4 {[%clk 0:02:08]}  Qxa4 {[%clk 0:02:40]} 37. d5 {[%clk 0:02:07]}  Ng6 {[%clk 0:02:40]} 38. Qc7 {[%clk 0:02:05]}  Re8 {[%clk 0:02:40]} 39. e5 {[%clk 0:02:03]}  Qb4 {[%clk 0:02:35]} 40. Re3 {[%clk 0:02:00]}  h5 {[%clk 0:02:35]} 41. e6 {[%clk 0:01:58]}  fxe6 {[%clk 0:02:34]} 42. dxe6 {[%clk 0:01:58]}  Qe7 {[%clk 0:02:34]} 43. Qc2 {[%clk 0:01:53]}  Qf6 {[%clk 0:02:34]} 44. Qc5 {[%clk 0:01:48]}  h4 {[%clk 0:02:31]} 45. Qd5 {[%clk 0:01:45]}  Ne7 {[%clk 0:02:26]} 46. Qd7 {[%clk 0:01:43]}  Rf8 {[%clk 0:02:26]} 47. Qd2 {[%clk 0:01:41]}  h3 {[%clk 0:02:24]} 48. Qe2 {[%clk 0:01:37]}  Nf5 {[%clk 0:02:07]} 49. e7 {[%clk 0:01:30]}  Qa1+ {[%clk 0:02:05]} 50. Qe1 {[%clk 0:01:28]}  Qxe1+ {[%clk 0:02:05]} 51. Rxe1 {[%clk 0:01:29]}  Re8 {[%clk 0:02:06]} 52. f4 {[%clk 0:01:20]}  Kf7 {[%clk 0:01:57]} 53. Kf2 {[%clk 0:01:17]}  Nxe7 {[%clk 0:01:57]} 54. Kf3 {[%clk 0:01:17]}  Rh8 {[%clk 0:01:55]} 55. Kg4 {[%clk 0:01:16]}  Nd5 {[%clk 0:01:55]} 56. Ra1 {[%clk 0:01:13]}  Nf6+ {[%clk 0:01:55]} 57. Kf3 {[%clk 0:01:13]}  Rb8 {[%clk 0:01:56]} 58. Ra2 {[%clk 0:01:10]}  Rb3+ {[%clk 0:01:55]} 0-1


[Site "https://www.chess.com"]

[Event "Titled Tuesday Blitz May 11 2021"]
[White "Prithu Gupta"]
[Black "Jarovinsky, Alexey"]
[WhiteFideId "46618546"]
[BlackFideId "14115131"]
[WhiteElo "1775"]
[BlackElo "2446"]
[Result "0-1"]
[Round "02"]
[TimeControl "180+1"]
[Date "2021.05.11"]
[WhiteClock "0:00:09"]
[BlackClock "0:00:04"]

1. d4 {[%clk 0:03:00]}  e6 {[%clk 0:02:58]} 2. Bf4 {[%clk 0:03:00]}  Nf6 {[%clk 0:02:51]} 3. e3 {[%clk 0:03:00]}  b6 {[%clk 0:02:46]} 4. Nf3 {[%clk 0:02:59]}  Bb7 {[%clk 0:02:46]} 5. a4 {[%clk 0:02:59]}  a6 {[%clk 0:02:41]} 6. Be2 {[%clk 0:02:59]}  Nh5 {[%clk 0:02:38]} 7. Bg5 {[%clk 0:02:53]}  Be7 {[%clk 0:02:37]} 8. Bxe7 {[%clk 0:02:53]}  Qxe7 {[%clk 0:02:38]} 9. O-O {[%clk 0:02:54]}  Nf6 {[%clk 0:02:35]} 10. a5 {[%clk 0:02:51]}  O-O {[%clk 0:02:27]} 11. c3 {[%clk 0:02:48]}  d6 {[%clk 0:02:17]} 12. Nbd2 {[%clk 0:02:47]}  Nbd7 {[%clk 0:02:14]} 13. axb6 {[%clk 0:02:42]}  cxb6 {[%clk 0:02:15]} 14. Nc4 {[%clk 0:02:42]}  a5 {[%clk 0:02:03]} 15. Na3 {[%clk 0:02:38]}  Rfb8 {[%clk 0:01:53]} 16. Nb5 {[%clk 0:02:36]}  Rc8 {[%clk 0:01:41]} 17. Nd2 {[%clk 0:02:31]}  Ba6 {[%clk 0:01:32]} 18. Re1 {[%clk 0:02:17]}  d5 {[%clk 0:01:28]} 19. f4 {[%clk 0:02:16]}  Bxb5 {[%clk 0:01:18]} 20. Bxb5 {[%clk 0:02:15]}  Qd6 {[%clk 0:01:19]} 21. Qa4 {[%clk 0:01:59]}  Nf8 {[%clk 0:01:08]} 22. Nf3 {[%clk 0:01:54]}  Ne4 {[%clk 0:01:05]} 23. Bd3 {[%clk 0:01:54]}  Nf6 {[%clk 0:01:00]} 24. Ne5 {[%clk 0:01:48]}  Ng6 {[%clk 0:00:59]} 25. Re2 {[%clk 0:01:42]}  Ne7 {[%clk 0:00:57]} 26. Rf1 {[%clk 0:01:39]}  Ne4 {[%clk 0:00:44]} 27. Qc2 {[%clk 0:01:15]}  f6 {[%clk 0:00:39]} 28. Nf3 {[%clk 0:01:13]}  Qc6 {[%clk 0:00:38]} 29. g4 {[%clk 0:01:11]}  b5 {[%clk 0:00:34]} 30. Qb1 {[%clk 0:01:08]}  Rc7 {[%clk 0:00:26]} 31. Rg2 {[%clk 0:01:08]}  Nc8 {[%clk 0:00:22]} 32. g5 {[%clk 0:01:08]}  Kh8 {[%clk 0:00:19]} 33. h4 {[%clk 0:01:05]}  Ncd6 {[%clk 0:00:18]} 34. h5 {[%clk 0:01:04]}  Nf5 {[%clk 0:00:08]} 35. h6 {[%clk 0:01:04]}  gxh6 {[%clk 0:00:07]} 36. gxf6 {[%clk 0:01:04]}  Nxe3 {[%clk 0:00:06]} 37. Ne5 {[%clk 0:01:04]}  Qe8 {[%clk 0:00:05]} 38. Bxe4 {[%clk 0:01:00]}  dxe4 {[%clk 0:00:04]} 39. Qxe4 {[%clk 0:01:01]}  Nxg2 {[%clk 0:00:05]} 40. f7 {[%clk 0:00:57]}  Qf8 {[%clk 0:00:04]} 41. Kxg2 {[%clk 0:00:57]}  Rac8 {[%clk 0:00:03]} 42. Rh1 {[%clk 0:00:47]}  Rxf7 {[%clk 0:00:04]} 43. Nxf7+ {[%clk 0:00:30]}  Qxf7 {[%clk 0:00:05]} 44. Rxh6 {[%clk 0:00:30]}  Qg7+ {[%clk 0:00:05]} 45. Kf3 {[%clk 0:00:27]}  Qxh6 {[%clk 0:00:05]} 46. Qe5+ {[%clk 0:00:27]}  Qg7 {[%clk 0:00:05]} 47. Qxe6 {[%clk 0:00:27]}  Rf8 {[%clk 0:00:05]} 48. d5 {[%clk 0:00:26]}  Qf6 {[%clk 0:00:05]} 49. Qg4 {[%clk 0:00:15]}  h6 {[%clk 0:00:05]} 50. Ke4 {[%clk 0:00:11]}  Kh7 {[%clk 0:00:05]} 51. Qd7+ {[%clk 0:00:09]}  Rf7 {[%clk 0:00:05]} 52. Qg4 {[%clk 0:00:10]}  Re7+ {[%clk 0:00:04]} 53. Kd3 {[%clk 0:00:10]}  Rg7 {[%clk 0:00:04]} 54. Qe6 {[%clk 0:00:10]}  Qxf4 {[%clk 0:00:03]} 55. d6 {[%clk 0:00:09]}  Qg5 {[%clk 0:00:03]} 56. Kc2 {[%clk 0:00:09]}  Qg6+ {[%clk 0:00:03]} 57. Qxg6+ {[%clk 0:00:09]}  Kxg6 {[%clk 0:00:04]} 0-1


[Site "https://www.chess.com"]

[Event "Titled Tuesday Blitz May 11 2021"]
[White "Priyanka Nutakki"]
[Black "Tristan, Leonardo"]
[WhiteFideId "25049615"]
[BlackFideId "113816"]
[WhiteElo "1916"]
[BlackElo "2404"]
[Result "0-1"]
[Round "02"]
[TimeControl "180+1"]
[Date "2021.05.11"]
[WhiteClock "0:00:01"]
[BlackClock "0:00:10"]

1. c4 {[%clk 0:03:00]}  e6 {[%clk 0:03:00]} 2. Nf3 {[%clk 0:03:00]}  d5 {[%clk 0:03:00]} 3. e3 {[%clk 0:03:00]}  Nf6 {[%clk 0:03:00]} 4. Nc3 {[%clk 0:03:01]}  b6 {[%clk 0:02:56]} 5. b3 {[%clk 0:02:59]}  Bb7 {[%clk 0:02:56]} 6. Bb2 {[%clk 0:02:59]}  Nbd7 {[%clk 0:02:56]} 7. Be2 {[%clk 0:02:59]}  Bd6 {[%clk 0:02:55]} 8. d4 {[%clk 0:02:58]}  a6 {[%clk 0:02:54]} 9. O-O {[%clk 0:02:57]}  O-O {[%clk 0:02:53]} 10. Rc1 {[%clk 0:02:58]}  Qe7 {[%clk 0:02:46]} 11. Qc2 {[%clk 0:02:53]}  dxc4 {[%clk 0:02:43]} 12. bxc4 {[%clk 0:02:43]}  e5 {[%clk 0:02:43]} 13. Rfd1 {[%clk 0:02:25]}  e4 {[%clk 0:02:36]} 14. Nd2 {[%clk 0:02:25]}  Rfe8 {[%clk 0:02:35]} 15. Nf1 {[%clk 0:02:25]}  h5 {[%clk 0:02:32]} 16. Na4 {[%clk 0:02:17]}  c5 {[%clk 0:02:06]} 17. dxc5 {[%clk 0:02:15]}  bxc5 {[%clk 0:02:05]} 18. Nc3 {[%clk 0:02:12]}  h4 {[%clk 0:01:59]} 19. Nd5 {[%clk 0:01:56]}  Bxd5 {[%clk 0:01:45]} 20. cxd5 {[%clk 0:01:57]}  Be5 {[%clk 0:01:46]} 21. Bxe5 {[%clk 0:01:35]}  Qxe5 {[%clk 0:01:45]} 22. Bc4 {[%clk 0:01:09]}  Qd6 {[%clk 0:01:42]} 23. Be2 {[%clk 0:01:00]}  h3 {[%clk 0:01:41]} 24. g3 {[%clk 0:01:00]}  Rac8 {[%clk 0:01:09]} 25. Nd2 {[%clk 0:00:49]}  Qxd5 {[%clk 0:00:55]} 26. Nc4 {[%clk 0:00:41]}  Qe6 {[%clk 0:00:48]} 27. Nd6 {[%clk 0:00:41]}  Ne5 {[%clk 0:00:39]} 28. Nxe8 {[%clk 0:00:29]}  Rxe8 {[%clk 0:00:39]} 29. Qxc5 {[%clk 0:00:26]}  Qf5 {[%clk 0:00:39]} 30. a4 {[%clk 0:00:08]}  Nf3+ {[%clk 0:00:36]} 31. Kh1 {[%clk 0:00:07]}  Ng4 {[%clk 0:00:37]} 32. Rf1 {[%clk 0:00:05]}  Qf6 {[%clk 0:00:19]} 33. Qc6 {[%clk 0:00:05]}  Re6 {[%clk 0:00:19]} 34. Qc8+ {[%clk 0:00:03]}  Kh7 {[%clk 0:00:19]} 35. Qa8 {[%clk 0:00:01]}  Nfxh2 {[%clk 0:00:17]} 36. Rc8 {[%clk 0:00:02]}  Nxf1 {[%clk 0:00:11]} 37. Bxg4 {[%clk 0:00:01]}  Nxg3+ {[%clk 0:00:09]} 38. fxg3 {[%clk 0:00:01]}  Qf1+ {[%clk 0:00:10]} 39. Kh2 {[%clk 0:00:01]}  Qg2# {[%clk 0:00:10]} 0-1


[Site "https://www.chess.com"]